fUST/lending_fUST_20250701
["ID","MTS","AMOUNT","RATE_DAILY","PERIOD"]
[368767995,1751355041584,-460.0,0.00019136,2]
[368767996,1751355041595,-460.0,0.00019136,2]
[368767997,1751355041606,-897.13,0.00019136,2]
[368767998,1751355041617,-546.51,0.00019136,2]
[368767999,1751355041628,-460.0,0.00019136,2]
[368768000,1751355041639,-460.0,0.00019136,2]
[368768001,1751355041649,-499.67,0.00019136,2]
[368768002,1751355041660,-571.53,0.00019136,2]
[368768003,1751355041671,-567.08,0.00019136,2]
[368768004,1751355041683,-460.0,0.00019136,2]
[368768005,1751355041693,-210.41,0.00019136,2]
[368768006,1751355041704,-460.0,0.00019136,2]
[368768007,1751355041714,-460.0,0.00019136,2]
[368768008,1751355041725,-4166.79,0.00019137,2]
[368768009,1751355041738,-404.72564485,0.00019141,2]
[368768010,1751355041749,-330.468815,0.00019178,2]
[368768011,1751355041759,-772.17193322,0.00019185,2]
[368768012,1751355041770,-590.22315339,0.00019251,2]
[368768013,1751355041782,-500.0,0.00019251,2]
[368768014,1751355041792,-500.0,0.00019251,2]
[368768015,1751355041803,-500.0,0.00019251,2]
[368768016,1751355041813,-392.27359511,0.00019251,2]
[368768017,1751355041824,-500.0,0.00019251,2]
[368768018,1751355041835,-1000.0,0.00019252,2]
[368768019,1751355041845,-1000.0,0.00019252,2]
[368768020,1751355041856,-27631.04621229,0.00019307,2]
[368768021,1751355041872,-1381.8940436,0.00019307,2]
[368768022,1751355041886,-1786.90081887,0.00019307,2]
[368768023,1751355041900,-35891.2977285,0.00019307,2]
[368768024,1751355041911,-84249.84594083,0.00019329,2]
[368768025,1751355041922,-404.72564485,0.00019383,2]
[368768026,1751355042064,-497.07,0.00019406,2]
[368768027,1751355042076,-473.12,0.00019406,2]
[368768028,1751355042086,-460.0,0.00019407,2]
[368768029,1751355042095,-460.0,0.00019407,2]
[368768030,1751355042104,-460.0,0.00019407,2]
[368768031,1751355042114,-460.0,0.00019408,2]
[368768032,1751355042123,-460.0,0.00019408,2]
[368768033,1751355042133,-460.0,0.00019408,2]
[368768034,1751355042143,-460.0,0.00019408,2]
[368768035,1751355042152,-460.0,0.00019408,2]
[368768036,1751355042162,-460.0,0.00019408,2]
[368768037,1751355042171,-460.0,0.00019408,2]
[368768038,1751355042181,-460.0,0.00019408,2]
[368768039,1751355042190,-913.52,0.00019408,2]
[368768040,1751355042201,-923.98,0.00019408,2]
[368768041,1751355042210,-460.0,0.00019408,2]
[368768042,1751355042220,-460.0,0.00019408,2]
[368768043,1751355042229,-460.0,0.00019408,2]
[368768044,1751355042239,-460.0,0.0001941,2]
[368768045,1751355042249,-897.13,0.0001941,2]
[368768046,1751355042258,-546.51,0.0001941,2]
[368768047,1751355042267,-499.67,0.0001941,2]
[368768048,1751355042277,-571.53,0.0001941,2]
[368768049,1751355042286,-567.08,0.0001941,2]
[368768050,1751355042296,-460.0,0.0001941,2]
[368768051,1751355042305,-460.0,0.0001941,2]
[368768052,1751355042316,-460.0,0.0001941,2]
[368768053,1751355042326,-4166.79,0.00019412,2]
[368768054,1751355042339,-591.45948143,0.00019582,2]
[368768055,1751355042349,-1840.06051857,0.00019583,2]
[368768056,1751355042359,-404.72564485,0.00019624,2]
[368768057,1751355042369,-473.12,0.0001968,2]
[368768058,1751355042380,-460.0,0.00019681,2]
[368768059,1751355042389,-460.0,0.00019681,2]
[368768060,1751355042399,-460.0,0.00019681,2]
[368768061,1751355042409,-502.63,0.00019682,2]
[368768062,1751355042419,-460.0,0.00019682,2]
[368768063,1751355042428,-460.0,0.00019682,2]
[368768064,1751355042438,-460.0,0.00019682,2]
[368768065,1751355042448,-913.52,0.00019682,2]
[368768066,1751355042457,-923.98,0.00019682,2]
[368768067,1751355042467,-460.0,0.00019682,2]
[368768068,1751355042476,-460.0,0.00019682,2]
[368768069,1751355042486,-420.0,0.00019682,2]
[368768070,1751355042497,-460.0,0.00019682,2]
[368768071,1751355042507,-460.0,0.00019684,2]
[368768072,1751355042516,-897.13,0.00019684,2]
[368768073,1751355042526,-546.51,0.00019684,2]
[368768074,1751355042536,-499.67,0.00019684,2]
[368768075,1751355042547,-571.53,0.00019684,2]
[368768076,1751355042558,-567.08,0.00019684,2]
[368768077,1751355042567,-460.0,0.00019684,2]
[368768078,1751355042576,-460.0,0.00019684,2]
[368768079,1751355042586,-460.0,0.00019684,2]
[368768080,1751355042596,-168.0,0.00019744,2]
[368768081,1751355042605,-743.73675996,0.000198,2]
[368768082,1751355042615,-1500.0,0.000198,2]
[368768083,1751355042624,-404.72564485,0.00019866,2]
[368768084,1751355042633,-20067.84204722,0.00019898,2]
[368768085,1751355042643,-35041.853129,0.00019899,2]
[368768086,1751355042653,-4166.79,0.00019899,2]
[368768087,1751355042663,-500.0,0.00019917,2]
[368768088,1751355042672,-151.0,0.00019917,2]
[368768089,1751355042681,-151.0,0.00019917,2]
[368768090,1751355042691,-151.0,0.00019917,2]
[368768091,1751355042700,-151.45632971,0.00019917,2]
[368768092,1751355042710,-151.0,0.00019917,2]
[368768094,1751355042719,-151.46057748,0.00019917,2]
[368768095,1751355042728,-202.39966653,0.00019917,2]
[368768096,1751355042737,-151.0,0.00019917,2]
[368768097,1751355042747,-151.0,0.00019917,2]
[368768099,1751355042757,-151.0,0.00019917,2]
[368768101,1751355042766,-151.0,0.00019917,2]
[368768103,1751355042775,-500.0,0.00019944,2]
[368768104,1751355042784,-151.0,0.00019944,2]
[368768105,1751355042794,-292.8455064,0.00019944,2]
[368768106,1751355042803,-151.0,0.00019944,2]
[368768107,1751355042813,-151.0,0.00019944,2]
[368768108,1751355042822,-473.12,0.00019954,2]
[368768109,1751355042832,-460.0,0.00019955,2]
[368768110,1751355042842,-460.0,0.00019955,2]
[368768112,1751355042851,-552.14582457,0.00019955,2]
[368768114,1751355042861,-460.0,0.00019956,2]
[368768115,1751355042869,-460.0,0.00019956,2]
[368768117,1751355042879,-460.0,0.00019956,2]
[368768119,1751355042888,-913.52,0.00019956,2]
[368768122,1751355042898,-923.98,0.00019956,2]
[368768124,1751355042908,-407.78316543,0.00019956,2]
[368768126,1751355042918,-460.0,0.00019956,2]
[368768128,1751355042927,-460.0,0.00019956,2]
[368768130,1751355042936,-590.09140178,0.00019958,2]
[368768132,1751355042946,-897.13,0.00019958,2]
[368768133,1751355042956,-546.51,0.00019958,2]
[368768135,1751355042965,-499.67,0.00019958,2]
[368768137,1751355042975,-571.53,0.00019958,2]
[368768139,1751355042985,-567.08,0.00019958,2]
[368768141,1751355042994,-460.0,0.00019958,2]
[368768142,1751355043003,-460.0,0.00019958,2]
[368768143,1751355043013,-460.0,0.00019958,2]
[368768144,1751355043023,-500.0,0.00019972,2]
[368768145,1751355043032,-198.0,0.00019972,2]
[368768146,1751355043041,-151.0,0.00019972,2]
[368768147,1751355043050,-200.44264362,0.00019972,2]
[368768149,1751355043061,-500.0,0.00019973,2]
[368768150,1751355043070,-500.0,0.00019973,2]
[368768152,1751355043080,-360.00832558,0.00019973,2]
[368768153,1751355043090,-500.0,0.00019973,2]
[368768154,1751355043099,-600.0,0.00019973,2]
[368768155,1751355043109,-500.43541712,0.00019973,2]
[368768156,1751355043119,-500.0,0.00019973,2]
[368768157,1751355043128,-500.9058487,0.00019973,2]
[368768158,1751355043138,-500.0,0.00019973,2]
[368768159,1751355043147,-500.0,0.00019973,2]
[368768160,1751355043156,-500.0,0.00019973,2]
[368768161,1751355043166,-500.0,0.00019973,2]
[368768162,1751355043176,-500.35336161,0.00019973,2]
[368768163,1751355043186,-500.0,0.00019973,2]
[368768164,1751355043195,-501.5397799,0.00019973,2]
[368768165,1751355043205,-500.0,0.00019973,2]
[368768166,1751355043216,-500.0,0.00019973,2]
[368768167,1751355043225,-500.0,0.00019973,2]
[368768169,1751355043235,-172.32907732,0.00019973,2]
[368768170,1751355043244,-500.0,0.00019973,2]
[368768171,1751355043253,-500.3360567,0.00019973,2]
[368768172,1751355043263,-500.0,0.00019973,2]
[368768173,1751355043272,-161.05583858,0.00019973,2]
[368768174,1751355043282,-500.0,0.00019973,2]
[368768175,1751355043291,-500.0,0.00019973,2]
[368768176,1751355043300,-500.0,0.00019973,2]
[368768177,1751355043310,-441.94601656,0.00019973,2]
[368768178,1751355043320,-500.0,0.00019973,2]
[368768179,1751355043329,-500.0,0.00019973,2]
[368768180,1751355043343,-500.0,0.00019973,2]
[368768181,1751355043352,-500.0,0.00019973,2]
[368768182,1751355043362,-500.0,0.00019973,2]
[368768183,1751355043372,-500.0,0.00019973,2]
[368768184,1751355043383,-500.0,0.00019973,2]
[368768185,1751355043392,-503.93424813,0.00019973,2]
[368768186,1751355043402,-423.65100897,0.00019973,2]
[368768187,1751355043413,-500.0,0.00019973,2]
[368768188,1751355043424,-500.40553689,0.00019973,2]
[368768189,1751355043434,-500.0,0.00019973,2]
[368768190,1751355043445,-500.0,0.00019999,2]
[368768191,1751355043454,-151.0,0.00019999,2]
[368768192,1751355043463,-11199.80403469,0.0002,2]
[368768193,1751355043473,-13646.57363882,0.0002,2]
[368768194,1751355043483,-1187.63158602,0.0002,2]
[368768195,1751355043493,-361.64427373,0.0002,2]
[368768196,1751355043502,-40000.0,0.0002,2]
[368768197,1751355043512,-73033.58789343,0.0002,2]
[368768198,1751355043521,-2875.54065777,0.0002,2]
[368768199,1751355043530,-252.11453212,0.0002,30]
[368768200,1751355043540,-549.31594541,0.0002,2]
[368768201,1751355043550,-40929.84782435,0.0002,2]
[368768202,1751355043559,-621.0,0.00020027,2]
[368768203,1751355043569,-245.0,0.00020027,2]
[368768204,1751355043579,-404.72564485,0.00020107,2]
[368768206,1751355043588,-178.563802,0.00020187,2]
[368768208,1751355043598,-4166.79,0.00020192,2]
[368768209,1751355043608,-936.66,0.0002022,3]
[368768210,1751355043618,-468.34,0.0002022,3]
[368768211,1751355043627,-473.12,0.00020228,2]
[368768212,1751355043637,-460.0,0.00020229,2]
[368768213,1751355043647,-460.0,0.00020229,2]
[368768214,1751355043656,-460.0,0.0002023,2]
[368768215,1751355043666,-460.0,0.0002023,2]
[368768216,1751355043676,-460.0,0.0002023,2]
[368768217,1751355043686,-913.52,0.0002023,2]
[368768219,1751355043696,-923.98,0.0002023,2]
[368768221,1751355043706,-576.7850787,0.0002023,2]
[368768223,1751355043715,-460.0,0.0002023,2]
[368768225,1751355043725,-897.13,0.00020232,2]
[368768227,1751355043735,-546.51,0.00020232,2]
[368768229,1751355043744,-499.67,0.00020232,2]
[368768232,1751355043754,-571.53,0.00020232,2]
[368768235,1751355043764,-567.08,0.00020232,2]
[368768238,1751355043773,-460.0,0.00020232,2]
[368768241,1751355043782,-460.0,0.00020232,2]
[368768244,1751355043791,-460.0,0.00020232,2]
[368768246,1751355043801,-2000.0,0.00020348,2]
[368768248,1751355043810,-404.72564485,0.00020348,3]
[368768249,1751355043820,-215.0738,0.00020389,2]
[368768251,1751355043829,-473.12,0.00020502,2]
[368768253,1751355043839,-460.0,0.00020503,2]
[368768255,1751355043848,-460.0,0.00020503,2]
[368768256,1751355043857,-460.0,0.00020504,2]
[368768257,1751355043866,-460.0,0.00020504,2]
[368768258,1751355043876,-460.0,0.00020504,2]
[368768259,1751355043885,-913.52,0.00020504,2]
[368768260,1751355043896,-923.98,0.00020504,2]
[368768261,1751355043905,-460.0,0.00020504,2]
[368768262,1751355043915,-4166.79,0.00020506,2]
[368768263,1751355043928,-897.13,0.00020506,2]
[368768264,1751355043938,-546.51,0.00020506,2]
[368768265,1751355043948,-571.53,0.00020506,2]
[368768266,1751355043957,-499.67,0.00020506,2]
[368768267,1751355043967,-567.08,0.00020506,2]
[368768268,1751355043976,-460.0,0.00020506,2]
[368768269,1751355043986,-460.0,0.00020506,2]
[368768270,1751355043996,-460.0,0.00020506,2]
[368768271,1751355044006,-1000.0,0.00020521,2]
[368768272,1751355044016,-1000.0,0.00020521,2]
[368768273,1751355044026,-1200.0,0.00020521,2]
[368768274,1751355044035,-1000.0,0.00020521,2]
[368768275,1751355044045,-155.15941754,0.00020521,2]
[368768276,1751355044057,-1000.0,0.00020521,2]
[368768277,1751355044067,-971.9089426,0.00020521,2]
[368768278,1751355044077,-1000.0,0.00020521,2]
[368768279,1751355044087,-1000.0,0.00020521,2]
[368768280,1751355044096,-604.50948688,0.00020521,2]
[368768281,1751355044106,-1000.0,0.00020521,2]
[368768282,1751355044115,-4166.79,0.00020558,2]
[368768283,1751355044125,-4166.79,0.00020558,2]
[368768284,1751355044135,-4166.79,0.00020558,2]
[368768285,1751355044144,-4166.79,0.00020558,2]
[368768286,1751355044154,-4166.79,0.00020558,2]
[368768287,1751355044164,-4166.89251963,0.00020558,2]
[368768288,1751355044175,-404.72564485,0.0002059,3]
[368768289,1751355044184,-363.726,0.00020679,2]
[368768290,1751355044194,-473.12,0.00020776,2]
[368768291,1751355044203,-345.80697311,0.00020777,2]
[368768292,1751355044212,-460.0,0.00020777,2]
[368768293,1751355044222,-460.0,0.00020778,2]
[368768294,1751355044233,-460.0,0.00020778,2]
[368768295,1751355044243,-460.0,0.00020778,2]
[368768296,1751355044253,-913.52,0.00020778,2]
[368768297,1751355044263,-923.98,0.00020778,2]
[368768298,1751355044272,-460.0,0.00020778,2]
[368768299,1751355044282,-897.13,0.0002078,2]
[368768300,1751355044291,-546.51,0.0002078,2]
[368768301,1751355044301,-571.53,0.0002078,2]
[368768302,1751355044311,-499.67,0.0002078,2]
[368768303,1751355044321,-567.08,0.0002078,2]
[368768304,1751355044331,-460.0,0.0002078,2]
[368768305,1751355044344,-460.0,0.0002078,2]
[368768306,1751355044354,-460.0,0.0002078,2]
[368768307,1751355044363,-404.72564485,0.00020831,4]
[368768308,1751355044372,-2500.0,0.00020896,2]
[368768309,1751355044384,-473.12,0.0002105,2]
[368768310,1751355044393,-460.0,0.00021051,2]
[368768311,1751355044402,-460.0,0.00021052,2]
[368768312,1751355044413,-460.0,0.00021052,2]
[368768313,1751355044423,-460.0,0.00021052,2]
[368768314,1751355044432,-913.52,0.00021052,2]
[368768315,1751355044442,-923.98,0.00021052,2]
[368768316,1751355044452,-460.0,0.00021052,2]
[368768317,1751355044462,-897.13,0.00021054,2]
[368768318,1751355044472,-546.51,0.00021054,2]
[368768319,1751355044482,-571.53,0.00021054,2]
[368768320,1751355044491,-499.67,0.00021054,2]
[368768321,1751355044500,-567.08,0.00021054,2]
[368768322,1751355044510,-460.0,0.00021054,2]
[368768323,1751355044519,-460.0,0.00021054,2]
[368768324,1751355044529,-460.0,0.00021054,2]
[368768325,1751355044539,-688.85272705,0.00021068,2]
[368768326,1751355044548,-1500.0,0.00021068,2]
[368768327,1751355044558,-1800.0,0.00021068,2]
[368768328,1751355044567,-1500.0,0.00021068,2]
[368768329,1751355044577,-1046.33629541,0.00021068,2]
[368768330,1751355044587,-1500.0,0.00021068,2]
[368768331,1751355044596,-1500.0,0.00021068,2]
[368768332,1751355044605,-1003.63925753,0.00021068,2]
[368768333,1751355044615,-404.72564485,0.00021072,4]
[368768334,1751355044624,-161.028501,0.0002112,7]
[368768335,1751355044634,-2151.0,0.00021183,2]
[368768336,1751355044643,-646.0,0.00021183,2]
[368768337,1751355044653,-406.0,0.00021183,2]
[368768338,1751355044662,-10566.96406666,0.000212,30]
[368768339,1751355044672,-1210.91323182,0.00021284,2]
[368768340,1751355044681,-384.8,0.00021304,3]
[368768341,1751355044690,-404.72564485,0.00021314,5]
[368768342,1751355044700,-473.12,0.00021324,2]
[368768343,1751355044709,-460.0,0.00021325,2]
[368768344,1751355044719,-460.0,0.00021326,2]
[368768345,1751355044728,-460.0,0.00021326,2]
[368768346,1751355044738,-460.0,0.00021326,2]
[368768347,1751355044747,-913.52,0.00021326,2]
[368768348,1751355044756,-923.98,0.00021326,2]
[368768349,1751355044766,-460.0,0.00021326,2]
[368768350,1751355044775,-897.13,0.00021328,2]
[368768351,1751355044784,-546.51,0.00021328,2]
[368768352,1751355044793,-571.53,0.00021328,2]
[368768353,1751355044803,-499.67,0.00021328,2]
[368768354,1751355044812,-567.08,0.00021328,2]
[368768355,1751355044823,-460.0,0.00021328,2]
[368768356,1751355044832,-460.0,0.00021328,2]
[368768357,1751355044842,-460.0,0.00021328,2]
[368768358,1751355044949,-2654.72416771,0.0002143,2]
[368768359,1751355044959,-3000.0,0.00021444,2]
[368768360,1751355044969,-587.0,0.00021474,2]
[368768361,1751355044978,-168.0,0.00021496,2]
[368768362,1751355044987,-303983.05527203,0.00021499,2]
[368768363,1751355044997,-151.0,0.00021499,2]
[368768364,1751355045006,-151.0,0.00021499,2]
[368768365,1751355045016,-151.0,0.00021499,2]
[368768366,1751355045026,-151.0,0.00021499,2]
[368768367,1751355045036,-12494.80655354,0.000215,2]
[368768368,1751355045045,-404.72564485,0.00021555,5]
[368768369,1751355045055,-976.581004,0.0002156,4]
[368768370,1751355045064,-473.12,0.00021598,2]
[368768371,1751355045074,-460.0,0.00021599,2]
[368768372,1751355045083,-460.0,0.000216,2]
[368768373,1751355045094,-460.0,0.000216,2]
[368768374,1751355045103,-460.0,0.000216,2]
[368768375,1751355045113,-913.52,0.000216,2]
[368768376,1751355045123,-923.98,0.000216,2]
[368768377,1751355045132,-460.0,0.000216,2]
[368768378,1751355045142,-897.13,0.00021602,2]
[368768379,1751355045151,-546.51,0.00021602,2]
[368768380,1751355045161,-571.53,0.00021602,2]
[368768381,1751355045170,-499.67,0.00021602,2]
[368768382,1751355045180,-567.08,0.00021602,2]
[368768383,1751355045190,-324.39947535,0.00021602,2]
[368768384,1751355045199,-460.0,0.00021602,2]
[368768385,1751355045208,-460.0,0.00021602,2]
[368768386,1751355045218,-885.85563688,0.00021616,2]
[368768387,1751355045229,-2400.0,0.00021616,2]
[368768388,1751355045238,-2000.0,0.00021616,2]
[368768389,1751355045248,-679.68119147,0.00021616,2]
[368768390,1751355045259,-2000.0,0.00021616,2]
[368768391,1751355045268,-1690.99117453,0.00021688,2]
[368768392,1751355045293,-532.45462918,0.00018586,2]
[368768393,1751355045302,-3234.71882547,0.00021688,2]
[368768394,1751355045312,-310.82654535,0.00021694,2]
[368768395,1751355045458,-152.2127232,0.00019917,2]
[368768396,1751355045467,-166.90445758,0.00020789,2]
[368768397,1751355045478,-320.0,0.00020789,2]
[368768398,1751355045492,-321.03,0.00020789,2]
[368768399,1751355045505,-158.06554242,0.00020789,2]
[368768400,1751355045515,-1059.5342493,0.00021694,2]
[368768405,1751355045823,-0.0105394,0.00021694,2]
[368768413,1751355045883,-749.58507329,0.00019034,2]
[368768446,1751355046444,-282.52597215,0.00019034,2]
[368768447,1751355046454,-1032.11104542,0.00019625,2]
[368768448,1751355046464,-151.65186857,0.00019917,2]
[368768449,1751355046473,-151.24438517,0.00019917,2]
[368768450,1751355046482,-1032.11104542,0.00020217,2]
[368768451,1751355046491,-490.26487976,0.00021694,2]
[368768452,1751355046579,-794.08795391,0.00021694,2]
[368768453,1751355046589,-8000.0,0.00021716,2]
[368768454,1751355046598,-223.0315306,0.00021758,2]
[368768455,1751355046608,-8000.0,0.00021782,2]
[368768456,1751355046617,-404.72564485,0.00021797,6]
[368768457,1751355046627,-8000.0,0.00021826,2]
[368768458,1751355046637,-500.0,0.00021856,2]
[368768459,1751355046646,-500.0,0.00021856,2]
[368768460,1751355046656,-473.12,0.00021872,2]
[368768461,1751355046665,-460.0,0.00021873,2]
[368768462,1751355046675,-460.0,0.00021874,2]
[368768463,1751355046684,-460.0,0.00021874,2]
[368768465,1751355046694,-460.0,0.00021874,2]
[368768466,1751355046703,-913.52,0.00021874,2]
[368768468,1751355046713,-923.98,0.00021874,2]
[368768470,1751355046722,-460.0,0.00021874,2]
[368768472,1751355046731,-897.13,0.00021876,2]
[368768474,1751355046740,-546.51,0.00021876,2]
[368768476,1751355046750,-571.53,0.00021876,2]
[368768478,1751355046759,-499.67,0.00021876,2]
[368768480,1751355046768,-567.08,0.00021876,2]
[368768481,1751355046778,-460.0,0.00021876,2]
[368768483,1751355046788,-460.0,0.00021876,2]
[368768485,1751355046798,-927.34187767,0.000219,2]
[368768487,1751355046810,-578.3181585,0.000219,2]
[368768489,1751355046821,-79.57996383,0.000219,2]
[368768490,1751355046830,-150.11804502,0.00021918,2]
[368768491,1751355046839,-1105.501294,0.0002198,2]
[368768492,1751355046848,-664.80069715,0.00021992,2]
[368768493,1751355046860,-2835.19930285,0.00021992,2]
[368768494,1751355046869,-19721.851271,0.00022,7]
[368768495,1751355046879,-12047.11,0.00022,7]
[368768496,1751355046889,-151.0,0.00022,2]
[368768497,1751355046899,-318.0,0.00022,3]
[368768498,1751355046908,-318.0,0.00022,3]
[368768499,1751355046918,-318.0,0.00022,3]
[368768500,1751355046927,-318.0,0.00022,3]
[368768501,1751355046938,-318.0,0.00022,3]
[368768502,1751355046948,-5385.27602217,0.00022,7]
[368768509,1751355122492,171.635439,0.00013699,2]
[368768521,1751355531021,-165.23468313,0.00018038,2]
[368768522,1751355534416,-134.76531687,0.00018038,2]
[368768523,1751355534439,-173.27783516,0.00018039,2]
[368768524,1751355546163,178.27686117,0.0001794,2]
[368768526,1751355680382,923.73577931,0.00017939,2]
[368768527,1751355689518,164.30834537,0.0001794,2]
[368768528,1751355701499,178.27686116,0.00017939,2]
[368768529,1751355816522,-167.52953148,0.00018037,2]
[368768530,1751355819661,-132.47046852,0.00018037,2]
[368768531,1751355819687,-43.6762675,0.00018038,2]
[368768532,1751355823161,-167.18271929,0.00018038,2]
[368768533,1751355852626,7719.84,0.00018,2]
[368768534,1751355921492,-173.56896372,0.00018037,2]
[368768535,1751355932124,-126.43103628,0.00018037,2]
[368768536,1751355932147,-357.0,0.00018037,2]
[368768537,1751355932168,-239.89043692,0.00018037,2]
[368768538,1751355950673,872.12618028,0.00017939,2]
[368768539,1751355986062,170.3416794,0.00017379,2]
[368768540,1751356044083,-300.0,0.00018036,2]
[368768541,1751356044104,-220.10956308,0.00018037,2]
[368768542,1751356044127,-460.0,0.00018037,2]
[368768543,1751356044147,-460.0,0.00018037,2]
[368768544,1751356044169,-431.70520388,0.00018037,2]
[368768954,1751356065762,1500.0,0.00016,2]
[368768998,1751356102021,-226.32360183,0.00018036,2]
[368768999,1751356104831,-73.67639817,0.00018036,2]
[368769000,1751356104855,-108.35837898,0.00018037,2]
[368769001,1751356110115,-168.93641714,0.00018037,2]
[368769002,1751356110137,-11.08141571,0.00018037,2]
[368769404,1751356199895,-300.0,0.00018036,2]
[368769405,1751356199928,-448.91858429,0.00018037,2]
[368769406,1751356199962,-481.56896372,0.00018037,2]
[368769407,1751356199994,-386.51305495,0.00018037,2]
[368769408,1751356200033,-460.0,0.00018037,2]
[368769409,1751356200066,-460.0,0.00018037,2]
[368769410,1751356200100,-460.0,0.00018037,2]
[368769411,1751356200132,-460.0,0.00018037,2]
[368769412,1751356200166,-460.0,0.00018037,2]
[368769413,1751356200198,-460.0,0.00018037,2]
[368769414,1751356200232,-580.0,0.00018037,2]
[368769415,1751356200265,-468.09120899,0.00018037,2]
[368769416,1751356200296,-460.0,0.00018037,2]
[368769417,1751356200329,-572.49499452,0.00018037,2]
[368769418,1751356200361,-460.0,0.00018037,2]
[368769419,1751356200394,-460.0,0.00018037,2]
[368769420,1751356200425,-460.0,0.00018037,2]
[368769421,1751356200457,-460.0,0.00018037,2]
[368769422,1751356200489,-460.0,0.00018037,2]
[368769423,1751356200524,-460.0,0.00018037,2]
[368769424,1751356200556,-430.0,0.00018037,2]
[368769425,1751356200589,-244.82638706,0.00018037,2]
[368769426,1751356200983,-215.17361294,0.00018037,2]
[368769427,1751356201014,-523.75053481,0.00018037,2]
[368769428,1751356201045,-460.0,0.00018037,2]
[368769429,1751356201076,-460.0,0.00018037,2]
[368769430,1751356201108,-382.87495642,0.00018037,2]
[368769431,1751356201142,-282.8229398,0.00018037,2]
[368769432,1751356201174,-500.0,0.00018037,2]
[368769433,1751356201207,-450.54870971,0.00018037,2]
[368769434,1751356201241,-500.0,0.00018037,2]
[368769435,1751356201273,-460.77768797,0.00018037,2]
[368769436,1751356201304,-460.0,0.00018037,2]
[368769437,1751356201337,-460.0,0.00018037,2]
[368769438,1751356201370,-460.0,0.00018037,2]
[368769439,1751356201402,-460.0,0.00018037,2]
[368769440,1751356201434,-460.0,0.00018037,2]
[368769441,1751356201467,-460.0,0.00018037,2]
[368769442,1751356201500,-478.66,0.00018037,2]
[368769443,1751356201532,-460.0,0.00018037,2]
[368769444,1751356201564,-460.0,0.00018037,2]
[368769445,1751356201598,-460.0,0.00018037,2]
[368769446,1751356201630,-249.14101321,0.00018038,2]
[368769447,1751356201663,-460.0,0.00018038,2]
[368769448,1751356201698,-412.50109028,0.00018038,2]
[368769449,1751356201831,-47.49890972,0.00018038,2]
[368769450,1751356201864,-460.0,0.00018038,2]
[368769451,1751356201898,-460.0,0.00018038,2]
[368769452,1751356201932,-460.0,0.00018038,2]
[368769453,1751356201967,-460.0,0.00018038,2]
[368769454,1751356202001,-460.0,0.00018038,2]
[368769455,1751356202035,-460.0,0.00018038,2]
[368769456,1751356202070,-483.8118529,0.00018038,2]
[368769457,1751356202107,-460.0,0.00018038,2]
[368769458,1751356202140,-460.0,0.00018038,2]
[368769459,1751356202173,-460.0,0.00018038,2]
[368769460,1751356202208,-460.0,0.00018038,2]
[368769461,1751356202249,-460.0,0.00018038,2]
[368769462,1751356202295,-460.0,0.00018038,2]
[368769463,1751356202336,-460.0,0.00018038,2]
[368769464,1751356202378,-460.0,0.00018038,2]
[368769465,1751356202419,-460.0,0.00018038,2]